fUSD/lending_fUSD_20260316
["ID","MTS","AMOUNT","RATE_DAILY","PERIOD"]
[408448436,1773648640988,-427.0,0.00019889,2]
[408448437,1773648640998,-500.0,0.00019889,2]
[408448438,1773648641008,-500.0,0.00019889,2]
[408448439,1773648641018,-1000.0,0.00019898,2]
[408448440,1773648641028,-856.1881,0.00019898,2]
[408448441,1773648641038,-3599.1656,0.000199,2]
[408448442,1773648641047,-5324.2813,0.000199,2]
[408448443,1773648641057,-25000.0,0.000199,3]
[408448444,1773648641067,-156.39618497,0.000199,2]
[408448445,1773648641077,-4791.86621428,0.000199,2]
[408448446,1773648641086,-591.79513277,0.000199,2]
[408448447,1773648641096,-840.36308429,0.000199,3]
[408448448,1773648641105,-3010.69718966,0.000199,2]
[408448449,1773648641115,-5800.02408402,0.000199,2]
[408448450,1773648641124,-767.71477236,0.000199,2]
[408448451,1773648641134,-2943.0,0.000199,5]
[408448452,1773648641148,-447.0,0.00019913,2]
[408448453,1773648641157,-3074.7661095,0.00019928,2]
[408448454,1773648641166,-500.0,0.00019944,2]
[408448455,1773648641176,-427.0,0.00019944,2]
[408448456,1773648641187,-500.0,0.00019944,2]
[408448457,1773648641197,-500.0,0.00019944,2]
[408448458,1773648641206,-500.0,0.00019973,2]
[408448459,1773648641218,-500.0,0.00019973,2]
[408448460,1773648641227,-194.42908711,0.00019973,2]
[408448461,1773648641238,-500.0,0.00019973,2]
[408448462,1773648641247,-500.0,0.00019973,2]
[408448463,1773648641256,-500.0,0.00019973,2]
[408448464,1773648641266,-500.74464948,0.00019973,2]
[408448465,1773648641276,-500.0,0.00019973,2]
[408448466,1773648641286,-177.80409146,0.00019973,2]
[408448467,1773648641295,-500.48034664,0.00019973,2]
[408448468,1773648641304,-382.15456314,0.00019973,2]
[408448469,1773648641317,-401.72677902,0.00019973,2]
[408448470,1773648641326,-500.0,0.00019973,2]
[408448471,1773648641337,-500.0,0.00019973,2]
[408448472,1773648641347,-500.0,0.00019973,2]
[408448473,1773648641356,-500.0,0.00019973,2]
[408448474,1773648641367,-500.0,0.00019973,2]
[408448475,1773648641378,-607.03591086,0.00019973,2]
[408448476,1773648641389,-500.0,0.00019973,2]
[408448477,1773648641399,-187.26399637,0.00019973,2]
[408448478,1773648641409,-500.0,0.00019973,2]
[408448479,1773648641418,-159.05847124,0.00019973,2]
[408448480,1773648641427,-500.58646134,0.00019973,2]
[408448481,1773648641438,-504.35822253,0.00019973,2]
[408448482,1773648641447,-500.0,0.00019973,2]
[408448483,1773648641457,-500.0,0.00019973,2]
[408448484,1773648641467,-636.31057009,0.00019973,2]
[408448485,1773648641476,-517.5462169,0.00019973,2]
[408448486,1773648641490,-500.0,0.00019973,2]
[408448487,1773648641500,-500.0,0.00019973,2]
[408448488,1773648641510,-500.0,0.00019973,2]
[408448489,1773648641519,-163.13729535,0.00019973,2]
[408448490,1773648641531,-500.0,0.00019973,2]
[408448491,1773648641544,-502.57184394,0.00019973,2]
[408448492,1773648641555,-500.0,0.00019973,2]
[408448493,1773648641566,-500.0,0.00019973,2]
[408448494,1773648641577,-500.0,0.00019973,2]
[408448495,1773648641586,-500.0,0.00019973,2]
[408448496,1773648641595,-502.80302906,0.00019973,2]
[408448497,1773648641605,-500.0,0.00019973,2]
[408448498,1773648641615,-500.0,0.00019973,2]
[408448499,1773648641625,-502.59246106,0.00019973,2]
[408448500,1773648641635,-380.17379979,0.00019973,2]
[408448501,1773648641644,-190.88796885,0.00019973,2]
[408448502,1773648641654,-500.0,0.00019973,2]
[408448503,1773648641664,-500.0,0.00019973,2]
[408448504,1773648641673,-500.0,0.00019973,2]
[408448505,1773648641683,-500.0,0.00019973,2]
[408448506,1773648641693,-500.0,0.00019973,2]
[408448507,1773648641702,-514.31653511,0.00019973,2]
[408448508,1773648641712,-501.99262603,0.00019973,2]
[408448509,1773648641721,-163.33806696,0.00019973,2]
[408448510,1773648641731,-162.64265193,0.00019973,2]
[408448511,1773648641742,-489.39648161,0.00019973,2]
[408448512,1773648641751,-500.0,0.00019973,2]
[408448513,1773648641760,-500.0,0.00019973,2]
[408448514,1773648641770,-1993.40129423,0.00019973,2]
[408448515,1773648641779,-150.0,0.0001998,2]
[408448516,1773648641789,-150.0,0.0001998,2]
[408448517,1773648641799,-272.991,0.0001998,2]
[408448518,1773648641809,-1044.0,0.0001998,2]
[408448519,1773648641819,-1344.0,0.0001998,2]
[408448520,1773648641829,-620.0,0.0001998,2]
[408448521,1773648641838,-3511.0,0.0001998,2]
[408448522,1773648641848,-827.34,0.00019988,2]
[408448523,1773648641858,-209.65133919,0.0001999,2]
[408448524,1773648641868,-209.65133919,0.0001999,2]
[408448525,1773648641878,-151.0,0.00019997,2]
[408448526,1773648641889,-500.0,0.00019999,2]
[408448527,1773648641899,-427.0,0.00019999,2]
[408448528,1773648641910,-500.0,0.00019999,2]
[408448529,1773648641924,-500.0,0.00019999,2]
[408448530,1773648641934,-300.0,0.00019999,2]
[408448531,1773648641944,-1371546.3127401,0.0002,2]
[408448532,1773648642074,-34499.1203571,0.0001797,2]
[408448533,1773648643745,-673.3,0.0001797,2]
[408448544,1773649336483,179.027695,0.00019857,7]
[408448546,1773649526413,189.558734,0.00019857,7]
[408448547,1773649552151,-212.06577071,0.00017858,2]
[408448548,1773649552172,-560.0,0.00017868,2]
[408448549,1773649552193,-341.0597,0.00017869,2]
[408448550,1773649552222,-297.15925553,0.00017869,2]
[408448551,1773649610905,189.558734,0.00019857,7]
[408448552,1773649692715,168.496653,0.000196,7]
[408448553,1773649748089,-250.0,0.00015,2]
[408448554,1773649768100,-200.0,0.00017858,2]
[408448555,1773649768131,-151.0,0.00017858,2]
[408448556,1773649768155,-151.0,0.00017858,2]
[408448557,1773649768179,-24460.35882975,0.00017869,2]
[408448558,1773649773006,168.496653,0.000196,7]
[408448559,1773649803617,150.0,0.00021978,30]
[408448560,1773649816083,443.28,0.000205,10]
[408448561,1773649823290,177.45,0.00014855,2]
[408448576,1773649831425,-1468.6,0.00017869,2]
[408448578,1773649831439,-389.18416633,0.00017869,2]
[408448579,1773649831452,-371.27120976,0.00017869,2]
[408448580,1773649831483,-38356.20623863,0.00017869,2]
[408448581,1773649831493,-152.0,0.0001794,3]
[408448582,1773649831502,-500.0,0.00017969,2]
[408448583,1773649831511,-500.0,0.00017969,2]
[408448584,1773649831520,-500.0,0.00017969,2]
[408448585,1773649831530,-415.52822655,0.00017969,2]
[408448586,1773649831539,-500.0,0.00017969,2]
[408448587,1773649831549,-333.80551454,0.00017969,2]
[408448588,1773649831558,-500.0,0.00017969,2]
[408448589,1773649831567,-502.83202664,0.00017969,2]
[408448590,1773649831577,-37930.07438472,0.0001797,2]
[408448591,1773649831589,-1126.46944558,0.0001797,2]
[408448592,1773649831599,-1398.7,0.00018171,2]
[408448593,1773649831612,-200.0,0.00018171,2]
[408448594,1773649831621,-500.0,0.00018171,2]
[408448595,1773649831631,-1500.0,0.00018171,2]
[408448596,1773649831641,-2000.0,0.00018171,2]
[408448597,1773649831650,-349.71614116,0.00018613,2]
[408448650,1773649837495,-678.36385884,0.00018613,2]
[408448651,1773649837506,-1398.7,0.00018625,2]
[408448652,1773649837516,-271.73607655,0.00018833,2]
[408448653,1773649837526,-500.0,0.00018833,2]
[408448654,1773649837536,-500.0,0.00018833,2]
[408448655,1773649837546,-500.0,0.00018833,2]
[408448656,1773649837556,-502.71070807,0.00018833,2]
[408448657,1773649837566,-410.13,0.00018999,2]
[408448658,1773649837575,-500.0,0.00018999,2]
[408448659,1773649837585,-500.0,0.00018999,2]
[408448660,1773649837595,-500.0,0.00018999,2]
[408448661,1773649837605,-500.0,0.00018999,2]
[408448662,1773649837615,-500.0,0.00018999,2]
[408448663,1773649837624,-500.0,0.00018999,2]
[408448664,1773649837633,-500.0,0.00018999,2]
[408448665,1773649837643,-500.0,0.00018999,2]
[408448666,1773649837653,-500.0,0.00018999,2]
[408448667,1773649837662,-500.0,0.00018999,2]
[408448668,1773649837671,-500.0,0.00018999,2]
[408448669,1773649837681,-500.0,0.00018999,2]
[408448670,1773649837689,-500.0,0.00018999,2]
[408448671,1773649837700,-500.0,0.00018999,2]
[408448672,1773649837709,-500.0,0.00018999,2]
[408448674,1773649837719,-500.0,0.00018999,2]
[408448676,1773649837729,-583.36890574,0.00018999,2]
[408448678,1773649837740,-151.0,0.00018999,2]
[408448680,1773649837750,-500.0,0.00018999,2]
[408448682,1773649837762,-500.0,0.00018999,2]
[408448684,1773649837776,-500.0,0.00018999,2]
[408448686,1773649837788,-500.0,0.00018999,2]
[408448688,1773649837804,-500.0,0.00018999,2]
[408448690,1773649837821,-500.0,0.00018999,2]
[408448692,1773649837832,-500.0,0.00018999,2]
[408448693,1773649837843,-500.0,0.00018999,2]
[408448695,1773649837855,-500.0,0.00018999,2]
[408448699,1773649837873,-500.0,0.00018999,2]
[408448701,1773649837886,-500.0,0.00018999,2]
[408448703,1773649837897,-500.0,0.00018999,2]
[408448706,1773649837908,-200.0,0.00018999,2]
[408448708,1773649837920,-500.0,0.00018999,2]
[408448709,1773649837931,-500.0,0.00018999,2]
[408448711,1773649837941,-250.0,0.00018999,2]
[408448713,1773649837951,-500.0,0.00018999,2]
[408448715,1773649837961,-250.0,0.00018999,2]
[408448717,1773649837977,-500.0,0.00018999,2]
[408448719,1773649837988,-250.0,0.00018999,2]
[408448721,1773649837998,-250.0,0.00018999,2]
[408448723,1773649838007,-151.0,0.00018999,2]
[408448725,1773649838017,-250.0,0.00018999,2]
[408448727,1773649838027,-151.0,0.00018999,2]
[408448729,1773649838036,-250.0,0.00018999,2]
[408448731,1773649838047,-197.81637649,0.00018999,2]
[408448733,1773649838062,-250.0,0.00018999,2]
[408448735,1773649838072,-250.0,0.00018999,2]
[408448737,1773649838082,-250.0,0.00018999,2]
[408448739,1773649838091,-250.0,0.00018999,2]
[408448742,1773649838101,-250.0,0.00018999,2]
[408448743,1773649838111,-174.61919141,0.00018999,2]
[408448745,1773649838121,-250.0,0.00018999,2]
[408448747,1773649838131,-250.0,0.00018999,2]
[408448749,1773649838141,-250.0,0.00018999,2]
[408448751,1773649838150,-250.0,0.00018999,2]
[408448753,1773649838160,-250.0,0.00018999,2]
[408448755,1773649838170,-250.0,0.00018999,2]
[408448757,1773649838181,-500.0,0.00018999,2]
[408448759,1773649838191,-500.0,0.00018999,2]
[408448761,1773649838201,-500.0,0.00018999,2]
[408448763,1773649838210,-500.0,0.00018999,2]
[408448765,1773649838220,-500.0,0.00018999,2]
[408448767,1773649838231,-500.0,0.00018999,2]
[408448770,1773649838241,-387.92885799,0.00018999,2]
[408448772,1773649838251,-500.0,0.00018999,2]
[408448774,1773649838260,-500.0,0.00018999,2]
[408448776,1773649838270,-500.0,0.00018999,2]
[408448777,1773649838280,-500.0,0.00018999,2]
[408448780,1773649838291,-500.0,0.00018999,2]
[408448782,1773649838301,-500.0,0.00018999,2]
[408448784,1773649838310,-500.0,0.00018999,2]
[408448786,1773649838320,-151.0,0.00019054,2]
[408448788,1773649838329,-1398.7,0.0001908,2]
[408448790,1773649838338,-151.0,0.00019109,2]
[408448791,1773649838347,-151.0,0.00019164,2]
[408448793,1773649838357,-2000.0,0.000192,2]
[408448795,1773649838366,-300.00003,0.000192,2]
[408448797,1773649838377,-410.04694,0.000192,2]
[408448799,1773649838387,-361.0,0.00019213,2]
[408448801,1773649838396,-151.0,0.00019219,2]
[408448803,1773649838405,-410.13,0.00019273,2]
[408448805,1773649838415,-500.0,0.00019273,2]
[408448807,1773649838424,-151.0,0.00019274,2]
[408448809,1773649838433,-151.0,0.00019329,2]
[408448811,1773649838444,-197.30699258,0.00019384,2]
[408448813,1773649838454,-1398.7,0.00019534,2]
[408448815,1773649838464,-410.13,0.00019547,2]
[408448818,1773649838474,-200.0,0.00019547,2]
[408448819,1773649838483,-181.08010149,0.00019547,2]
[408448821,1773649838492,-504.25347756,0.00019547,2]
[408448823,1773649838503,-282.0,0.00019563,2]
[408448825,1773649838512,-419.0,0.00019599,2]
[408448827,1773649838522,-419.0,0.00019629,2]
[408448829,1773649838533,-419.0,0.00019681,2]
[408448831,1773649838542,-2032.0,0.000197,2]
[408448833,1773649838555,-2500.0,0.000197,2]
[408448835,1773649838564,-500.0,0.00019725,2]
[408448837,1773649838574,-613.0,0.00019725,2]
[408448839,1773649838583,-500.0,0.00019725,2]
[408448841,1773649838593,-500.0,0.00019725,2]
[408448843,1773649838602,-419.0,0.00019763,2]
[408448845,1773649838611,-500.0,0.0001978,2]
[408448847,1773649838620,-613.0,0.0001978,2]
[408448849,1773649838630,-500.0,0.0001978,2]
[408448851,1773649838639,-500.0,0.0001978,2]
[408448853,1773649838649,-8021.15112328,0.00019788,2]
[408448855,1773649838658,-500.0,0.00019798,2]
[408448857,1773649838667,-500.0,0.00019798,2]
[408448859,1773649838676,-500.0,0.00019798,2]
[408448861,1773649838686,-500.0,0.00019798,2]
[408448864,1773649838697,-265.38214851,0.00019798,2]
[408448866,1773649838707,-500.0,0.00019798,2]
[408448868,1773649838716,-294.42888124,0.00019798,2]
[408448870,1773649838726,-943.54171047,0.00019798,2]
[408448872,1773649838737,-257.12218751,0.00019798,2]
[408448873,1773649838746,-243.14954281,0.00019798,2]
[408448875,1773649838755,-500.0,0.00019798,2]
[408448877,1773649838766,-500.0,0.00019798,2]
[408448879,1773649838775,-943.54171047,0.00019798,2]
[408448882,1773649838785,-500.0,0.00019798,2]
[408448883,1773649838800,-197.56454924,0.00019798,2]
[408448885,1773649838812,-500.0,0.00019798,2]
[408448887,1773649838822,-500.0,0.00019798,2]
[408448889,1773649838831,-943.54171047,0.00019798,2]
[408448891,1773649838841,-366.03505459,0.00019798,2]
[408448892,1773649838851,-500.0,0.00019798,2]
[408448893,1773649838860,-500.0,0.00019798,2]
[408448894,1773649838869,-943.54171047,0.00019798,2]
[408448895,1773649838879,-500.0,0.00019798,2]
[408448896,1773649838888,-500.0,0.00019798,2]
[408448897,1773649838898,-500.0,0.00019798,2]
[408448898,1773649838908,-500.0,0.00019798,2]
[408448899,1773649838917,-943.54171047,0.00019798,2]
[408448900,1773649838926,-943.54171047,0.00019798,2]
[408448901,1773649838935,-500.0,0.00019798,2]
[408448902,1773649838945,-500.0,0.00019798,2]
[408448903,1773649838955,-500.0,0.00019798,2]
[408448904,1773649838964,-943.54171047,0.00019798,2]
[408448905,1773649838974,-500.0,0.00019798,2]
[408448906,1773649838983,-943.54171047,0.00019798,2]
[408448907,1773649838993,-500.0,0.00019798,2]
[408448908,1773649839002,-500.0,0.00019798,2]
[408448909,1773649839011,-943.54171047,0.00019798,2]
[408448910,1773649839020,-534.03767451,0.00019798,2]
[408448911,1773649839029,-943.54171047,0.00019798,2]
[408448912,1773649839039,-500.0,0.00019798,2]
[408448913,1773649839051,-943.54171047,0.00019798,2]
[408448914,1773649839060,-500.0,0.00019798,2]
[408448915,1773649839070,-943.54171047,0.00019798,2]
[408448916,1773649839080,-500.0,0.00019798,2]
[408448917,1773649839089,-500.0,0.00019798,2]
[408448918,1773649839099,-943.54171047,0.00019798,2]
[408448919,1773649839109,-943.54171047,0.00019798,2]
[408448920,1773649839119,-500.0,0.00019798,2]
[408448921,1773649839128,-943.54171047,0.00019798,2]
[408448922,1773649839138,-943.54171047,0.00019798,2]
[408448923,1773649839147,-943.54171047,0.00019798,2]
[408448924,1773649839156,-943.54171047,0.00019798,2]
[408448925,1773649839166,-943.54171047,0.00019798,2]
[408448926,1773649839176,-943.54171047,0.00019798,2]
[408448927,1773649839186,-943.54171047,0.00019798,2]
[408448928,1773649839197,-943.54171047,0.00019798,2]
[408448929,1773649839206,-943.54171047,0.00019798,2]
[408448930,1773649839217,-943.54171047,0.00019798,2]
[408448931,1773649839227,-943.54171047,0.00019798,2]
[408448932,1773649839236,-943.54171047,0.00019798,2]
[408448933,1773649839246,-943.54171047,0.00019798,2]
[408448934,1773649839256,-943.54171047,0.00019798,2]
[408448935,1773649839265,-943.54171047,0.00019798,2]
[408448936,1773649839274,-943.54171047,0.00019798,2]
[408448937,1773649839283,-943.54171047,0.00019798,2]
[408448938,1773649839292,-943.54171047,0.00019798,2]
[408448939,1773649839303,-943.54171047,0.00019798,2]
[408448940,1773649839312,-943.54171047,0.00019798,2]
[408448941,1773649839322,-943.54171047,0.00019798,2]
[408448942,1773649839333,-943.54171047,0.00019798,2]
[408448943,1773649839343,-943.54171047,0.00019798,2]
[408448944,1773649839353,-943.54171047,0.00019798,2]
[408448945,1773649839363,-943.54171047,0.00019798,2]
[408448946,1773649839372,-943.54171047,0.00019798,2]
[408448947,1773649839382,-943.54171047,0.00019798,2]
[408448948,1773649839391,-943.54171047,0.00019798,2]
[408448949,1773649839402,-943.54171047,0.00019798,2]
[408448950,1773649839411,-943.54171047,0.00019798,2]
[408448951,1773649839421,-943.54171047,0.00019798,2]
[408448952,1773649839431,-943.54171047,0.00019798,2]
[408448953,1773649839440,-943.54171047,0.00019798,2]
[408448954,1773649839450,-943.54171047,0.00019798,2]
[408448955,1773649839459,-943.54171047,0.00019798,2]
[408448956,1773649839469,-943.54171047,0.00019798,2]
[408448957,1773649839478,-4573.9098,0.000198,2]
[408448958,1773649839487,-2000.0,0.000198,2]
[408448959,1773649839496,-1173.3971,0.000198,2]
[408448960,1773649839505,-1173.3971,0.000198,2]
[408448961,1773649839514,-4503.84809301,0.000198,2]
[408448967,1773649839669,-3517.30303026,0.000198,2]
[408448968,1773649839678,-8021.15112327,0.00019813,2]
[408448969,1773649839687,-410.13,0.00019821,2]
[408448970,1773649839696,-174.56,0.00019823,2]
[408448971,1773649839705,-2630.191,0.00019823,2]
[408448972,1773649839714,-8021.15112327,0.00019825,2]
[408448973,1773649839723,-500.0,0.00019835,2]
[408448974,1773649839732,-613.0,0.00019835,2]
[408448975,1773649839741,-500.0,0.00019835,2]
[408448976,1773649839750,-500.0,0.00019835,2]
[408448977,1773649839759,-8021.15112327,0.00019838,2]
[408448978,1773649839767,-200.0,0.0001984,2]
[408448979,1773649839777,-8021.15112327,0.0001985,2]
[408448980,1773649839786,-1004.1134493,0.00019856,2]
[408448981,1773649839797,-8021.15112327,0.00019863,2]
[408448982,1773649839810,-419.0,0.0001987,2]
[408448983,1773649839819,-500.0,0.00019872,2]
[408448984,1773649839828,-500.0,0.00019872,2]
[408448985,1773649839838,-10000.0,0.00019873,2]
[408448986,1773649839848,-250.0,0.00019873,2]
[408448987,1773649839858,-8021.15112327,0.00019875,2]
[408448988,1773649839867,-419.0,0.0001988,2]
[408448989,1773649839877,-500.0,0.00019886,2]
[408448990,1773649839886,-500.0,0.00019886,2]
[408448991,1773649839897,-8021.15112327,0.00019888,2]
[408448992,1773649839907,-32961.6878,0.00019888,2]
[408448993,1773649839916,-1000.0,0.00019888,2]
[408448994,1773649839925,-500.0,0.00019889,2]
[408448995,1773649839935,-613.0,0.00019889,2]
[408448996,1773649839956,-500.0,0.00019889,2]
[408448997,1773649839976,-500.0,0.00019889,2]
[408448998,1773649839990,-500.0,0.00019898,2]
[408448999,1773649840001,-500.0,0.00019898,2]
[408449000,1773649840011,-3207.1288,0.000199,2]
[408449001,1773649840021,-2000.0,0.000199,2]
[408449002,1773649840030,-8021.15112327,0.000199,2]
[408449003,1773649840039,-1680.72616859,0.000199,3]
[408449004,1773649840048,-510.54604585,0.000199,2]
[408449005,1773649840058,-250.0,0.000199,2]
[408449006,1773649840067,-5000.0,0.000199,2]
[408449007,1773649840077,-250.0,0.00019928,2]
[408449008,1773649840086,-250.0,0.00019944,2]
[408449009,1773649840096,-322.75686492,0.00019944,2]
[408449010,1773649840106,-613.0,0.00019944,2]
[408449011,1773649840115,-500.0,0.00019944,2]
[408449012,1773649840125,-350.0,0.00019944,2]
[408449013,1773649840134,-500.0,0.00019949,2]
[408449014,1773649840144,-500.0,0.00019949,2]
[408449015,1773649840153,-499.65729969,0.00019949,2]
[408449016,1773649840162,-310.40884199,0.00019949,2]
[408449017,1773649840172,-187.79546847,0.00019949,2]
[408449018,1773649840182,-500.0,0.00019949,2]
[408449019,1773649840191,-235.58879927,0.00019949,2]
[408449020,1773649840200,-500.0,0.00019949,2]
[408449021,1773649840209,-159.98953286,0.00019949,2]
[408449023,1773649840219,-500.0,0.00019949,2]
[408449024,1773649840228,-500.0,0.00019949,2]
[408449025,1773649840377,-3663.76423994,0.0001995,2]
[408449026,1773649840399,-5544.46891766,0.0001995,2]
[408449027,1773649840410,-2603.58328867,0.0001995,2]
[408449028,1773649840434,-1937.33653068,0.0001995,2]
[408449029,1773649840458,-2940.25858336,0.0001995,2]
[408449030,1773649840476,-1460.34627499,0.0001995,2]
[408449031,1773649840490,-1478.54499697,0.0001995,2]
[408449032,1773649840503,-1180.06788588,0.0001995,2]
[408449033,1773649840518,-805.9959581,0.0001995,2]
[408449034,1773649840713,-23957.85397375,0.0001995,2]
[408449035,1773649840725,-1389.2032173,0.0001995,2]
[408449036,1773649840736,-11266.2953754,0.0001995,2]
[408449037,1773649840745,-18952.8140685,0.0001995,2]
[408449038,1773649840757,-3235.2485055,0.0001995,2]
[408449039,1773649840770,-500.0,0.00019973,2]
[408449040,1773649840781,-500.0,0.00019973,2]
[408449041,1773649840793,-501.14795082,0.00019973,2]
[408449042,1773649840809,-503.30261259,0.00019973,2]
[408449043,1773649840826,-501.44386623,0.00019973,2]
[408449044,1773649840838,-500.0,0.00019973,2]
[408449045,1773649840849,-501.08688956,0.00019973,2]
[408449046,1773649840861,-504.29304807,0.00019973,2]
[408449047,1773649840869,-500.0,0.00019973,2]
[408449048,1773649840882,-500.0,0.00019973,2]
[408449049,1773649840892,-500.96059113,0.00019973,2]
[408449050,1773649840902,-501.05181581,0.00019973,2]
[408449051,1773649840911,-501.71862419,0.00019973,2]
[408449052,1773649840920,-560.11906367,0.00019973,2]
[408449053,1773649840930,-500.0,0.00019973,2]
[408449054,1773649840939,-500.0,0.00019973,2]
[408449055,1773649840948,-501.02691611,0.00019973,2]
[408449056,1773649840957,-500.0,0.00019973,2]
[408449057,1773649840967,-500.0,0.00019973,2]
[408449058,1773649840976,-502.8043416,0.00019973,2]
[408449059,1773649840986,-501.85464549,0.00019973,2]
[408449060,1773649840995,-500.0,0.00019973,2]
[408449061,1773649841004,-386.61016156,0.00019973,2]
[408449062,1773649841014,-500.0,0.00019973,2]
[408449063,1773649841023,-503.39059615,0.00019973,2]
[408449064,1773649841033,-250.0,0.0001998,2]
[408449065,1773649841043,-1398.7,0.00019988,2]
[408449066,1773649841053,-151.0,0.00019997,2]
[408449067,1773649841062,-151.0,0.00019997,2]
[408449068,1773649841071,-613.0,0.00019999,2]
[408449069,1773649841080,-500.0,0.00019999,2]
[408449070,1773649841089,-1151.278279,0.00019999,5]
[408449071,1773649841099,-1151.278279,0.00019999,5]
[408449072,1773649841108,-200.0,0.00019999,2]
[408449073,1773649841118,-500.0,0.00019999,2]
[408449074,1773649841127,-157.90611637,0.00019999,2]
[408449075,1773649841136,-500.0,0.00019999,2]
[408449076,1773649841145,-3000.0,0.00019999,2]
[408449077,1773649841154,-500.0,0.00019999,2]
[408449078,1773649841163,-2685.0,0.0002,5]
[408449079,1773649841172,-2153.0,0.0002,5]
[408449080,1773649841181,-3483326.19729386,0.0002,2]
[408449081,1773649841190,-535.70265949,0.0002,2]
[408449082,1773649841199,-172.7735,0.0002,2]
[408449083,1773649841208,-172.7735,0.0002,2]
[408449084,1773649841217,-172.7735,0.0002,2]
[408449085,1773649841226,-172.7735,0.0002,2]
[408449086,1773649841235,-172.7735,0.0002,2]
[408449087,1773649841245,-151.0,0.0002,2]
[408449088,1773649841254,-1237116.00123621,0.0002,2]
[408449089,1773649841265,-501.29805223,0.0002,2]
[408449090,1773649841276,-1982.76593172,0.0002,2]
[408449092,1773649845272,-620.0,0.0001998,2]
[408449093,1773649845281,-451.18168082,0.0002,2]
[408449094,1773649845379,-13371.4208097,0.0002,2]
[408449095,1773649845482,-325.58015431,0.0002,2]
[408449099,1773649846004,-3455.33465571,0.0002,2]
[408449100,1773649846018,-637.83513197,0.0002,2]
[408449101,1773649846045,-8573.35201539,0.0002,2]
[408449102,1773649846059,-12123.59999997,0.0002,2]
[408449103,1773649846072,-3181.22757038,0.0002,2]
[408449112,1773650105424,160.0,0.000222,14]
[408449114,1773650436034,267.053766,0.00019885,7]
[408449115,1773650456645,381.08062,0.00019867,7]
[408449116,1773650474184,353.267976,0.00019867,7]
[408449117,1773650496277,175.984359,0.00019867,7]
[408449118,1773650557196,200.0,0.000192,7]
[408449119,1773650559317,500.0,0.000193,7]
[408449120,1773650561405,800.0,0.000194,7]
[408449121,1773650563488,1100.0,0.000195,7]
[408449122,1773650565568,1400.0,0.000196,7]
[408449123,1773650567656,200.0,0.000197,7]
[408449124,1773650569844,200.0,0.000198,7]
[408449125,1773650571923,200.0,0.000199,7]
[408449128,1773650635982,200.0,0.000192,7]
[408449129,1773650638073,400.0,0.000193,7]
[408449130,1773650640181,700.0,0.000194,7]
[408449131,1773650642258,900.0,0.000195,7]
[408449132,1773650644345,1200.0,0.000196,7]
[408449133,1773650646453,200.0,0.000197,7]
[408449134,1773650648523,200.0,0.000198,7]
[408449135,1773650650608,200.0,0.000199,7]
[408449136,1773650713272,2141.23,0.000205,10]
[408449137,1773650751879,340.791164,0.00019788,7]
[408449138,1773650802492,1298.05,0.000205,10]
[408449139,1773650803176,-185.48153841,0.00015964,2]
[408449140,1773650837800,200.0,0.000192,7]
[408449141,1773650839891,400.0,0.000193,7]
[408449142,1773650841980,600.0,0.000194,7]
[408449143,1773650844060,800.0,0.000195,7]
[408449144,1773650846078,-562.0767016,0.00015964,2]